bitfinex-derivatives/quotes_ETHF0:USTF0_20251204
["timestamp","ask_amount","ask_price","bid_price","bid_amount"]
[1764878662336,6.8059,3121.6,3121.0,1.189]
[1764878662337,3.5981,3121.1,3121.0,3.23585]
[1764878662635,3.5981,3121.1,3121.0,0.16015]
[1764878662832,1.7767,3120.9,3120.8,5.0945]
[1764878663137,3.5981,3120.9,3120.8,3.2078]
[1764878663529,3.5981,3120.5,3120.4,3.37541986]
[1764878663729,3.5981,3120.5,3120.4,5.26211986]
[1764878664333,52.828,3120.8,3120.4,7.08741986]
[1764878664634,1.7767,3120.5,3120.4,5.26211986]
[1764878664826,3.5981,3120.5,3120.4,5.10192986]
[1764878665026,3.5981,3120.5,3120.4,0.00742986]
[1764878665240,3.5981,3120.5,3119.0,4.3968]
[1764878665241,3.5981,3119.4,3119.0,4.3968]
[1764878665434,3.5981,3119.1,3118.6,3.2078]
[1764878665733,3.2078,3119.5,3119.4,1.8867]
[1764878665930,4.9845,3119.5,3119.4,1.8867]
[1764878666127,3.21132624,3119.5,3119.4,3.71469563]
[1764878666338,4.98802624,3119.5,3119.4,1.88939563]
[1764878666539,4.98802624,3119.5,3119.4,0.00269563]
[1764878666741,6.80942624,3119.5,3119.4,0.00269563]
[1764878667133,4.98802624,3119.5,3119.4,1.88939563]
[1764878667328,6.80942624,3119.5,3119.4,0.00269563]
[1764878667528,3.21132624,3119.5,3119.4,3.71469563]
[1764878667748,0.00352624,3119.5,3119.4,7.08273563]
[1764878667938,0.00352624,3119.5,3119.4,3.87493563]
[1764878668132,3.2078,3120.4,3120.0,1.189]
[1764878668342,3.2078,3120.4,3120.3,3.712]
[1764878668541,5.0292,3120.4,3119.8,3.2078]
[1764878668836,5.0292,3120.4,3119.5,1.189]
[1764878668837,3.2078,3120.4,3120.1,3.712]
[1764878669031,8.7018,3120.4,3120.1,3.712]
[1764878669230,1.7767,3120.1,3120.0,1.189]
[1764878669433,1.7767,3120.1,3119.9,0.16021]
[1764878669639,3.5981,3119.6,3119.3,3.2078]
[1764878669843,1.7767,3119.5,3119.4,1.88939563]
[1764878670346,1.7767,3119.5,3119.4,0.00269563]
[1764878670640,3.5981,3119.5,3119.4,0.00269563]
[1764878670845,1.7767,3119.5,3119.4,1.88939563]
[1764878671244,3.2078,3119.6,3119.5,4.901]
[1764878671441,3.2078,3120.0,3119.6,1.8867]
[1764878671640,19.5909,3120.0,3119.6,0.16022]
[1764878671842,1.7767,3119.7,3119.6,0.16022]
[1764878672043,3.5981,3119.7,3119.6,0.16022]
[1764878672438,1.7767,3119.5,3119.4,0.00269563]
[1764878672748,3.5981,3119.5,3119.4,0.00269563]
[1764878672939,3.2078,3119.6,3119.5,4.901]
[1764878673250,3.21177572,3120.4,3120.3,1.8867]
[1764878673444,3.21177572,3120.4,3120.3,3.712]
[1764878674445,0.00397572,3120.4,3120.3,3.87219]
[1764878674747,3.2078,3120.8,3120.3,3.87219]
[1764878674748,3.2078,3120.8,3120.7,4.1433]
[1764878674942,3.2078,3120.8,3120.7,2.32147]
[1764878675144,7.2168,3120.8,3120.7,0.16017]
[1764878675337,1.965,3120.6,3120.1,3.2078]
[1764878675644,1.965,3120.6,3120.1,3.368]
[1764878675842,1.96882926,3120.6,3120.5,2.1613]
[1764878676247,0.00382926,3120.6,3120.5,2.1613]
[1764878676544,0.00480484,3120.7,3120.6,4.30348]
[1764878677049,3.2078,3121.2,3121.1,4.1433]
[1764878677738,3.21192537,3121.2,3121.1,4.1433]
[1764878678140,3.21192537,3121.2,3121.1,4.30345]
[1764878678445,1e-08,3121.2,3121.1,4.30345]
[1764878678952,1e-08,3121.2,3120.5,1.0647]
[1764878678953,4.009,3120.7,3120.6,3.06359198]
[1764878679246,4.009,3120.3,3119.4,1.06739563]
[1764878679446,3.2078,3120.3,3119.4,1.06739563]
[1764878679847,3.2078,3119.9,3119.4,1.06739563]
[1764878681447,3.2078,3120.4,3119.8,4.1433]
[1764878683336,3.2078,3120.0,3119.7,0.16022]
[1764878683541,5.0255,3120.0,3119.6,3.2078]
[1764878683743,1.8177,3119.7,3119.6,3.2078]
[1764878685153,3.5768,3119.7,3119.6,3.2078]
[1764878685741,3.5768,3119.2,3119.1,3.2078]
[1764878686251,3.5768,3118.6,3118.1,3.2078]
[1764878686442,6.7846,3118.6,3118.1,3.2078]
[1764878686943,6.78794817,3118.6,3118.1,3.21090845]
[1764878687349,3.21114817,3118.6,3118.5,1.8572]
[1764878687554,0.00334817,3118.6,3118.5,3.7665]
[1764878687753,3.2078,3119.2,3118.6,3.7665]
[1764878687956,3.2078,3118.7,3118.6,3.7665]
[1764878688351,1.8177,3118.6,3118.2,1.0776]
[1764878688551,3.2078,3118.3,3118.2,1.0776]
[1764878688749,3.8288,3118.2,3118.1,0.00310845]
[1764878688954,1.8177,3117.3,3117.2,0.16035]
[1764878689248,3.5768,3117.3,3116.4,4.54262888]
[1764878689556,3.2078,3117.2,3117.1,1.8572]
[1764878689949,3.2078,3117.2,3117.1,1.86117743]
[1764878690452,6.7846,3117.2,3117.1,0.00397743]
[1764878690954,5.0255,3117.2,3117.1,0.00397743]
[1764878691156,6.7846,3117.2,3117.1,0.00397743]
[1764878691549,3.5768,3116.9,3116.8,0.00480484]
[1764878692249,3.5768,3116.9,3115.8,1.0776]
[1764878692250,12.03820311,3116.9,3115.8,1.0776]
[1764878692560,3.2078,3116.4,3115.8,1.0776]
[1764878692751,3.5768,3115.9,3115.8,0.00233309]
[1764878692953,1.82070115,3115.9,3115.8,0.00233309]
[1764878693156,0.00300115,3115.9,3115.8,0.00233309]
[1764878693354,3.2078,3118.0,3116.4,1.0776]
[1764878693556,3.2078,3118.0,3117.8,0.16031]
[1764878694261,3.21165215,3118.0,3117.8,0.16031]
[1764878694562,3.21165215,3118.0,3117.9,3.92681]
[1764878694950,3.21165215,3118.0,3117.9,2.01751]
[1764878695347,1.8177,3117.7,3117.6,0.00481286]
[1764878696057,3.21165215,3118.0,3117.6,0.00481286]
[1764878696858,1.8177,3117.7,3117.6,0.00481286]
[1764878697260,3.5768,3117.7,3117.6,0.00481286]
[1764878700058,3.5768,3117.7,3117.0,3.2078]
[1764878700258,3.5768,3117.1,3117.0,3.2078]
[1764878700566,10.108,3117.8,3117.4,3.7665]
[1764878700764,1.8177,3117.5,3117.1,0.16035]
[1764878700968,3.5768,3117.1,3117.0,3.2078]
[1764878701360,3.5768,3117.5,3116.7,0.00481286]
[1764878701667,3.5768,3117.5,3117.0,3.2078]
[1764878702062,3.5768,3117.5,3117.0,4.2854]
[1764878702364,0.00385215,3118.0,3117.9,3.92681]
[1764878702658,3.2078,3118.3,3118.2,4.8441]
[1764878702858,0.1965,3118.8,3118.7,3.92677]
[1764878703166,3.5768,3118.3,3118.2,4.22468981]
[1764878703464,3.5768,3117.9,3117.4,3.2078]
[1764878703669,1.8177,3117.5,3117.0,3.2078]
[1764878703860,3.5932,3117.1,3117.0,0.00378459]
[1764878704366,3.5932,3116.7,3115.7,3.36822]
[1764878704674,3.2078,3116.4,3115.8,1.33102]
[1764878704870,40.8,3116.6,3115.9,0.16042]
[1764878705060,40.8,3116.6,3116.2,3.2078]
[1764878705274,3.2078,3116.8,3116.3,0.16039]
[1764878705674,3.5932,3116.6,3116.2,3.21127911]
[1764878705860,3.2078,3116.8,3116.2,0.00347911]
[1764878706065,6.801,3116.3,3116.2,0.00347911]
[1764878706877,6.801,3116.3,3115.3,3.2078]
[1764878706878,1.8091,3115.4,3115.3,3.2078]
[1764878707062,1.2175,3116.4,3114.5,3.36829]
[1764878707063,1.8091,3114.6,3114.5,3.36829]
[1764878707267,3.5932,3114.6,3114.5,3.2078]
[1764878707464,3.2078,3115.2,3114.5,3.2078]
[1764878707766,5.3038,3115.7,3114.6,0.16048]
[1764878707971,0.00481286,3115.5,3114.6,0.16297863]
[1764878708269,3.2078,3115.3,3114.6,0.00249863]
[1764878708575,0.00481286,3115.5,3115.4,0.16044]
[1764878709074,0.00481286,3115.5,3114.6,3.21029863]
[1764878709265,3.21261286,3115.5,3114.7,0.16047]
[1764878709466,3.21261286,3115.5,3114.9,0.16047]
[1764878709669,3.21261286,3115.5,3114.6,3.21029863]
[1764878709670,3.2078,3115.0,3114.6,0.00249863]
[1764878709967,4.4253,3115.0,3114.6,0.00249863]
[1764878710174,10.4253,3115.0,3114.0,3.2078]
[1764878710480,3.2078,3114.4,3113.5,0.16054]
[1764878711063,3.2078,3114.4,3113.5,0.16363531]
[1764878711273,0.01870612,3114.0,3113.5,0.16363531]
[1764878711773,1.2175,3113.6,3113.5,0.00309531]
[1764878711971,1.2175,3113.6,3113.0,3.2078]
[1764878711972,1.24058863,3113.6,3113.0,3.2078]
[1764878712174,0.02527989,3113.3,3113.0,3.2078]
[1764878712864,0.02866469,3113.3,3113.0,3.21110495]
[1764878713377,0.02527989,3113.2,3113.0,3.21110495]
[1764878713670,0.00481286,3113.9,3113.6,0.16053]
[1764878713877,0.00481286,3113.9,3113.6,1.33113]
[1764878714175,0.00481286,3113.9,3113.0,0.00330495]
[1764878714379,4.4253,3113.6,3113.0,0.00330495]
[1764878714566,3.2078,3113.2,3112.1,0.16061]
[1764878714770,3.2078,3112.7,3111.6,3.2078]
[1764878715173,3.2078,3112.7,3112.0,0.16062]
[1764878715376,3.2078,3112.7,3111.5,1.33124]
[1764878715566,3.2078,3112.2,3111.6,3.2078]
[1764878715878,3.21261286,3112.2,3111.6,3.2078]
[1764878716871,0.00481286,3112.2,3111.7,4.19288158]
[1764878717073,0.00481286,3112.2,3112.0,0.16062]
[1764878717276,3.2078,3113.8,3113.0,0.16056]
[1764878717579,40.8,3113.8,3113.1,0.16056]
[1764878717876,3.2078,3114.1,3113.4,0.16054]
[1764878718381,3.2162446,3114.1,3113.4,0.16535286]
[1764878718574,0.0084446,3114.1,3113.5,0.16054]
[1764878718777,0.0084446,3114.1,3113.4,3.21261286]
[1764878718973,0.0084446,3114.1,3114.0,0.16051]
[1764878719172,0.0084446,3114.1,3114.0,0.16425121]
[1764878719674,3.2078,3114.5,3114.4,0.16049]
[1764878719875,0.24595,3114.9,3114.4,3.2078]
[1764878720179,0.24595,3114.9,3114.8,0.16047]
[1764878720776,0.24889455,3114.9,3114.8,0.16047]
[1764878720975,0.24889455,3114.9,3114.8,3.36827]
[1764878724283,0.24889455,3114.9,3114.8,3.2078]
[1764878724474,3.45669455,3114.9,3114.2,0.1605]
[1764878725975,0.24889455,3114.9,3114.8,0.16047]
[1764878726378,41.04889455,3114.9,3114.1,7.53701646]
[1764878726580,41.04889455,3114.9,3114.3,0.1605]
[1764878726785,0.24889455,3114.9,3114.7,0.16048]
[1764878726978,0.24889455,3114.9,3114.8,0.16047]
[1764878728090,0.24889455,3114.9,3114.2,3.2078]
[1764878728388,0.24889455,3114.9,3114.2,3.3683]
[1764878728581,0.24889455,3114.9,3114.2,3.2078]
[1764878728785,0.24889455,3114.9,3114.6,3.36828]
[1764878729590,0.24889455,3114.9,3114.6,0.16048]
[1764878729787,0.24889455,3114.9,3114.2,3.2078]
[1764878729989,0.24889455,3114.9,3114.2,3.3683]
[1764878730288,0.24889455,3114.9,3114.2,3.2078]
[1764878731190,1.2175,3114.3,3114.2,3.2078]
[1764878732193,1.2175,3114.3,3114.2,3.3683]
[1764878732590,0.24889455,3114.9,3114.2,3.3683]
[1764878732591,0.24889455,3114.9,3114.6,0.16048]
[1764878733594,1.2175,3114.3,3114.0,0.00374121]
[1764878734885,0.24889455,3114.9,3114.4,0.16049]
[1764878735397,0.24889455,3114.9,3114.1,3.2078]
[1764878736094,0.76419194,3114.8,3114.1,3.2078]
[1764878736295,3.2078,3114.8,3114.1,3.2078]
[1764878736599,1.2198,3114.3,3114.1,3.2078]
[1764878737098,1.2198,3114.3,3114.0,0.00374121]
[1764878737294,13.74391267,3114.2,3114.0,0.00374121]
[1764878737502,1.2198,3114.3,3113.7,3.2078]
[1764878737798,1.2198,3114.3,3114.1,0.16051]
[1764878738396,1.2198,3114.3,3114.1,3.37085515]
[1764878738792,4.953,3114.7,3114.1,3.37085515]
[1764878738996,0.76496204,3114.6,3114.1,3.37085515]
[1764878739295,0.76496204,3114.6,3114.3,0.1605]
[1764878739495,3.2078,3114.8,3114.5,0.16049]
[1764878740194,0.24889455,3114.9,3114.7,0.16048]
[1764878740589,0.24889455,3114.9,3114.2,7.4616378]
[1764878740899,0.76499751,3114.8,3114.2,3.2078]
[1764878741196,13.23289455,3114.9,3114.2,3.3683]
[1764878741401,0.76505348,3114.8,3114.2,3.3683]
[1764878741595,13.23289455,3114.9,3114.1,0.00254515]
[1764878741596,0.24889455,3114.9,3114.6,3.2078]
[1764878741796,0.24889455,3114.9,3114.8,0.16047]
[1764878742000,0.00481286,3115.2,3115.0,0.16046]
[1764878742200,0.00481286,3115.2,3115.1,3.36826]
[1764878742895,0.00867557,3115.2,3115.1,3.2078]
[1764878743897,3.2078,3116.0,3115.1,9.2078]
[1764878744096,4.4253,3116.4,3115.9,0.16041]
[1764878744497,4.4253,3116.4,3115.5,3.2078]
[1764878744997,0.76937814,3116.3,3115.6,0.00481286]
[1764878745198,0.00481286,3116.3,3115.6,0.00481286]
[1764878745793,0.00481286,3116.3,3115.6,0.16524286]
[1764878746500,0.00481286,3116.3,3115.9,3.2078]
[1764878747205,3.2078,3117.6,3116.0,4.09973069]
[1764878747403,2.36198126,3117.8,3117.2,0.16035]
[1764878747404,1.2198,3117.8,3117.2,0.16035]
[1764878747605,40.8,3117.7,3117.2,0.16035]
[1764878748303,40.80279433,3117.7,3117.2,0.16335626]
[1764878748899,0.00279433,3117.7,3117.2,0.16335626]
[1764878749202,0.00279433,3117.7,3117.2,0.00300626]
[1764878749906,40.8,3117.6,3117.2,0.00300626]
[1764878750202,0.00279433,3117.7,3117.2,0.00300626]
[1764878750203,0.00279433,3117.7,3117.4,3.2078]
[1764878750802,40.80279433,3117.7,3117.4,3.2078]
[1764878751006,0.00279433,3117.7,3117.4,3.2078]
[1764878751306,2.0254,3117.3,3117.2,0.00300626]
[1764878751800,3.9905,3117.3,3117.2,0.00300626]
[1764878752001,1.1714,3117.1,3116.4,3.2078]
[1764878752203,3.9905,3116.5,3116.4,3.2078]
[1764878752901,3.2078,3117.0,3116.4,3.21081882]
[1764878753108,12.973,3116.9,3116.4,3.21563168]
[1764878753307,2.0254,3116.5,3116.4,3.21563168]
[1764878753501,12.973,3116.9,3116.4,3.21563168]
[1764878753904,3.2078,3117.0,3116.4,3.21563168]
[1764878754204,12.972,3116.9,3116.4,3.21563168]
[1764878754905,3.2078,3117.0,3116.5,0.16039]
[1764878755111,3.2078,3117.5,3116.5,4.11310984]
[1764878755509,3.2078,3117.5,3117.0,0.16036]
[1764878755807,40.8,3117.6,3117.0,0.16036]
[1764878757507,0.00279433,3117.7,3117.3,0.16034]
[1764878757907,3.9905,3117.4,3116.9,4.19751989]
[1764878758101,3.9905,3117.4,3116.8,3.2078]
[1764878759511,0.00279433,3117.7,3116.7,0.16037]
[1764878759512,0.00279433,3117.7,3117.4,2.21654]
[1764878759705,0.00279433,3117.7,3117.6,4.24573]
[1764878759911,0.00279433,3117.7,3117.6,2.21653]
[1764878760209,0.00279433,3117.7,3117.6,0.16033]
[1764878760405,2.02819433,3117.7,3117.6,0.16033]
[1764878760808,0.00279433,3117.7,3117.6,2.21653]
[1764878761002,0.00279433,3117.7,3117.6,4.24573]
[1764878761308,0.00279433,3117.7,3117.6,7.45353]
[1764878762107,0.00279433,3117.7,3117.6,2.21653]
[1764878762315,0.00279433,3117.7,3117.6,7.45353]
[1764878762705,1.1714,3119.2,3118.7,2.0562]
[1764878763011,3.2078,3120.2,3119.0,5.67848081]
[1764878763211,40.8,3120.2,3119.8,0.16021]
[1764878763511,4.3792,3120.6,3120.1,0.1602]
[1764878763709,4.38199505,3120.6,3120.1,0.16313321]
[1764878764019,4.38199505,3120.6,3120.5,0.16018]
[1764878764020,0.00279505,3120.6,3120.5,0.16018]
[1764878764305,3.2078,3121.1,3120.3,3.2078]
[1764878764509,3.2078,3121.5,3120.5,4.25272572]
[1764878764707,3.2078,3121.5,3120.3,3.2078]
[1764878764708,3.2078,3121.1,3120.3,3.2078]
[1764878765309,0.00481286,3121.0,3120.3,3.2078]
[1764878766303,1.1568,3120.6,3120.1,0.00293321]
[1764878766507,3.2078,3120.2,3120.1,0.00293321]
[1764878767014,0.00481286,3121.0,3120.1,0.00293321]
[1764878767216,0.00481286,3121.0,3120.1,4.08064108]
[1764878767717,0.00481286,3121.0,3120.5,3.2078]
[1764878768806,0.00481286,3121.0,3120.9,3.2078]
[1764878769615,0.00481286,3121.0,3120.4,3.2078]
[1764878771113,0.00481286,3121.0,3120.1,0.00293321]
[1764878771114,1.1568,3120.6,3120.1,0.00293321]
[1764878771417,12.972,3120.5,3120.1,0.00293321]
[1764878773517,12.972,3120.5,3120.0,3.21261286]
[1764878774718,12.972,3120.5,3120.0,3.21616093]
[1764878775322,10.688,3120.5,3120.0,3.21616093]
[1764878775520,40.8,3120.4,3120.0,3.21616093]
[1764878776117,46.8,3120.4,3117.8,2.4989]
[1764878776315,3.2078,3119.3,3118.2,3.2078]
[1764878776521,3.2078,3119.3,3118.5,1.0553]
[1764878776721,3.2078,3119.3,3119.0,0.16026]
[1764878777525,3.2078,3119.3,3119.0,0.16400642]
[1764878778121,0.00481286,3119.5,3119.0,0.16400642]
[1764878778320,3.2078,3119.8,3119.2,1.0553]
[1764878778523,3.2078,3119.8,3119.1,4.08677882]
[1764878778723,3.2078,3119.4,3119.0,0.00374642]
[1764878781022,1.1568,3119.2,3119.0,0.00374642]
[1764878781216,40.8,3119.1,3119.0,0.00374642]
[1764878782322,40.8,3119.1,3118.1,3.2078]
[1764878782523,3.2078,3118.6,3118.1,3.2078]
[1764878782721,16.1678,3118.6,3118.1,3.2078]
[1764878783216,3.21032225,3118.6,3118.2,0.1603]
[1764878785214,1.1568,3118.5,3118.2,0.1603]
[1764878786216,3.21032225,3118.6,3118.2,0.1603]
[1764878786719,4.0381,3118.3,3118.1,0.003219]
[1764878786924,3.2078,3118.2,3118.1,1.917219]
[1764878787721,3.2078,3118.2,3118.1,0.003219]
[1764878788022,7.2459,3118.2,3118.1,0.003219]
[1764878789826,2.0402,3117.3,3117.2,3.36815]
[1764878790022,4.0381,3117.3,3117.2,3.36815]
[1764878790621,3.2078,3117.7,3117.2,3.36815]
[1764878790826,11.793,3117.6,3117.2,3.37131696]
[1764878791424,0.00481286,3117.8,3117.6,5.17603]
[1764878791628,0.00481286,3117.8,3117.7,4.12072]
[1764878791923,0.00481286,3117.8,3117.7,2.07432]
[1764878792126,4.04291286,3117.8,3117.7,0.16032]
[1764878792425,2.04501286,3117.8,3117.7,0.16032]
[1764878792729,4.04291286,3117.8,3117.7,0.16032]
[1764878793127,2.0402,3117.3,3117.2,3.21096696]
[1764878793334,4.0381,3117.3,3117.2,0.00316696]
[1764878793628,2.0402,3117.3,3117.2,0.00316696]
[1764878793825,4.3646,3117.6,3117.2,0.00316696]
[1764878794131,0.00481286,3117.8,3117.7,3.95432]
[1764878795127,3.2078,3118.2,3118.1,3.9543]
[1764878795330,0.00252225,3118.6,3118.5,2.06998]
[1764878796032,3.64342225,3118.6,3118.0,3.2078]
[1764878796228,3.2078,3118.3,3117.9,0.16031]
[1764878796433,1.8566,3118.0,3117.9,0.16031]
[1764878796731,3.2078,3118.3,3117.9,0.16031]
[1764878797126,3.2078,3118.3,3118.0,0.16031]
[1764878797326,3.2078,3118.3,3118.2,0.1603]
[1764878797532,3.2078,3118.3,3118.2,2.07]
[1764878800225,5.0644,3118.3,3118.2,0.1603]
[1764878800426,0.00733511,3118.6,3118.5,1.9097]
[1764878801430,0.00733511,3118.6,3117.8,3.2078]
[1764878801735,0.00733511,3118.6,3117.9,4.19939743]
[1764878802126,0.00733511,3118.6,3118.4,0.16028]
[1764878802528,0.00733511,3118.6,3118.5,3.95428]
[1764878804534,4.08943511,3118.6,3118.5,0.16028]
[1764878804832,2.08213511,3118.6,3118.5,0.16028]
[1764878805233,5.28993511,3118.6,3118.5,0.16028]
[1764878805835,5.28993511,3118.6,3117.7,3.2078]
[1764878805836,7.29723511,3118.6,3117.9,0.16031]
[1764878806037,4.0821,3118.0,3117.9,0.16031]
[1764878806837,2.0748,3118.0,3117.9,0.16031]
[1764878807833,4.0821,3118.0,3117.9,0.16031]
[1764878808237,2.0748,3118.0,3117.9,0.16031]
[1764878808631,4.0821,3118.0,3117.9,0.16031]
[1764878809440,4.0821,3117.4,3117.3,3.36814]
[1764878809635,2.0748,3117.4,3117.3,3.36814]
[1764878809829,2.0748,3117.4,3117.3,5.35184]
[1764878810425,6.88644467,3118.2,3117.4,0.16034]
[1764878810641,4.4184,3118.2,3117.6,0.16033]
[1764878810834,4.4184,3118.2,3117.7,0.16032]
[1764878811139,12.918,3118.1,3117.7,0.16032]
[1764878811340,2.0748,3117.8,3117.7,0.16032]
[1764878811537,4.0821,3117.8,3117.7,0.16032]
[1764878811735,4.0821,3117.4,3117.3,3.2078]
[1764878811938,4.0821,3117.3,3117.1,0.00481286]
[1764878812437,4.0821,3116.6,3116.5,0.16038]
[1764878813443,4.0821,3116.6,3116.5,0.16314095]
[1764878814946,4.0821,3116.6,3116.2,0.00481286]
[1764878814947,4.0821,3116.3,3116.2,0.00481286]
[1764878815548,4.0821,3115.2,3114.6,1.2444]
[1764878815742,3.2078,3115.1,3114.4,0.16049]
[1764878816039,4.0821,3114.5,3114.4,0.00382819]
[1764878816436,0.00481286,3114.8,3114.7,4.1313]
[1764878817541,0.00481286,3114.8,3114.7,4.29178]
[1764878817746,2.07961286,3114.8,3114.4,0.00382819]
[1764878817947,3.2078,3114.7,3114.4,0.00382819]
[1764878818143,4.0821,3114.5,3114.1,0.00481286]
[1764878818352,3.2078,3114.2,3114.1,1.98851286]
[1764878818647,3.2078,3114.2,3114.1,4.13611286]
[1764878819046,3.2078,3114.2,3114.1,0.16532286]
[1764878819245,3.2078,3114.2,3114.1,2.15232464]
[1764878819941,3.2078,3114.2,3114.1,0.16862464]
[1764878821446,3.2078,3114.2,3114.1,2.15232464]
[1764878821649,7.2899,3114.2,3114.1,0.00811464]
[1764878821944,7.2899,3114.2,3113.4,1.2444]
[1764878821945,13.2899,3114.2,3112.8,1.2444]
[1764878822149,3.2078,3113.1,3112.8,1.2444]
[1764878822851,3.2078,3113.1,3112.8,1.40497]
[1764878823048,3.2078,3113.1,3113.0,1.9837]
[1764878823354,3.2078,3113.1,3112.8,0.16378559]
[1764878823954,2.0748,3112.9,3112.8,0.16378559]
[1764878824248,4.23204946,3112.9,3112.8,0.00321559]
[1764878824648,17.15304946,3112.9,3112.8,0.00321559]
[1764878824849,0.00344946,3112.9,3112.8,4.22829559]
[1764878825146,4.18164946,3112.9,3112.8,0.00321559]
[1764878825449,4.1782,3112.7,3111.6,3.2078]
[1764878825644,3.2078,3112.5,3112.4,4.0645]
[1764878826246,7.386,3112.5,3112.4,0.00198605]
[1764878827840,19.001,3112.5,3112.4,0.00198605]
[1764878828650,4.1782,3112.1,3111.3,0.16065]
[1764878828952,3.2078,3111.9,3111.2,3.2078]
[1764878829148,2.0244,3111.3,3111.2,3.2078]
[1764878829351,0.7273,3110.4,3109.8,3.2078]
[1764878829555,3.2078,3110.2,3109.8,0.00262952]
[1764878829849,2.75301406,3110.1,3109.1,0.16077]
[1764878830055,3.2078,3109.6,3109.1,0.16077]
[1764878830253,3.2078,3109.6,3108.6,4.71692234]
[1764878830254,3.2078,3109.6,3108.6,4.4569]
[1764878830449,2.88126705,3109.6,3109.5,0.16075]
[1764878830749,40.8,3110.3,3109.4,1.2491]
[1764878830948,16.9331,3111.6,3110.3,0.16071]
[1764878831149,3.2078,3111.2,3110.2,3.2078]
[1764878831459,47.3188,3111.1,3110.2,0.16071]
[1764878831649,3.2078,3110.3,3109.4,0.00315667]
[1764878831852,3.2078,3109.9,3109.6,0.16074]
[1764878832052,3.2078,3109.9,3109.5,0.00482075]
[1764878832243,13.58901406,3109.8,3109.5,0.00482075]
[1764878832444,13.58901406,3109.8,3108.4,3.3686]
[1764878832762,4.4093,3109.4,3108.4,3.3686]
[1764878833055,4.4093,3109.4,3108.5,0.1608]
[1764878833252,3.2078,3108.7,3108.0,3.2078]
[1764878833461,3.2078,3108.7,3108.0,4.4569]
[1764878833754,3.2078,3109.1,3108.8,0.16078]
[1764878833949,3.2078,3109.1,3108.1,7.42438544]
[1764878834154,3.2078,3109.1,3108.4,0.1608]
[1764878834746,3.2078,3109.1,3108.7,0.16079]
[1764878835362,1.2747,3108.7,3107.3,0.16086]
[1764878835651,5.96081406,3108.2,3107.2,3.2078]
[1764878835848,0.00482075,3108.3,3107.4,4.26463833]
[1764878836041,1.43542,3110.1,3108.5,0.1608]
[1764878836251,4.4825,3109.4,3108.5,0.1608]
[1764878836457,17.5315,3109.4,3108.7,0.16079]
[1764878836748,13.05,3109.2,3108.7,0.16079]
[1764878837653,3.2078,3108.9,3108.7,0.16079]
[1764878837950,3.2078,3108.9,3108.6,0.00482075]
[1764878838154,1.2747,3108.8,3108.6,0.00482075]
[1764878838359,1.2747,3108.8,3107.7,3.2078]
[1764878838653,3.2078,3108.4,3107.7,3.36864]
[1764878839456,3.2078,3108.4,3107.8,0.16083]
[1764878839758,13.055,3108.3,3107.8,0.16083]
[1764878839958,53.855,3108.3,3107.8,0.16083]
[1764878840461,3.2078,3108.8,3108.0,1.2491]
[1764878840660,3.2078,3108.8,3108.5,0.16079]
[1764878841055,3.2078,3108.8,3107.2,1.2491]
[1764878841056,4.4825,3108.8,3107.8,0.16083]
[1764878841454,4.4825,3108.8,3107.6,3.2078]
[1764878841754,4.4825,3108.8,3107.7,4.12916429]
[1764878843163,4.4825,3108.8,3108.2,0.16081]
[1764878843658,3.2078,3108.8,3108.0,4.4569]
[1764878843858,3.2078,3108.8,3108.5,0.1608]
[1764878845164,13.056,3109.1,3108.7,0.16079]
[1764878845852,3.2078,3108.8,3108.1,4.17819977]
[1764878846051,1.2747,3108.7,3108.0,0.16082]
[1764878846352,3.2078,3108.4,3108.0,0.16082]
[1764878846661,13.055,3108.3,3108.0,0.16082]
[1764878846955,13.055,3108.3,3107.4,0.16085]
[1764878847156,3.2078,3107.9,3107.4,0.16085]
[1764878847348,3.21086828,3107.9,3107.4,0.16085]
[1764878847550,3.2078,3107.5,3106.7,0.16089]
[1764878847757,3.2078,3107.5,3106.8,0.16089]
[1764878847758,0.00482075,3107.4,3106.8,0.16089]
[1764878847956,0.00482075,3107.4,3106.9,0.16088]
[1764878848163,0.00482075,3107.4,3107.0,0.16088]
[1764878848550,0.00482075,3107.4,3107.1,0.16087]
[1764878848756,0.00482075,3107.4,3106.6,1.2491]
[1764878849256,0.00482075,3107.4,3107.3,0.16086]
[1764878849559,3.97481404,3107.4,3107.3,0.16086]
[1764878851063,3.21262075,3107.4,3107.3,0.16086]
[1764878851258,0.00482075,3107.4,3107.3,0.16086]
[1764878853264,0.76668975,3107.4,3107.3,0.16086]
[1764878853466,1.2747,3107.3,3106.7,3.2078]
[1764878853766,0.761869,3107.2,3106.7,3.2078]
[1764878853958,3.2078,3106.8,3105.9,0.16093]
[1764878854159,3.2078,3106.2,3105.9,0.16367609]
[1764878854359,3.2078,3106.6,3106.0,4.10759558]
[1764878854558,0.7612882,3106.5,3105.9,1.24624609]
[1764878854755,3.2078,3106.6,3106.4,0.16091]
[1764878855152,3.2078,3106.6,3106.5,0.1609]
[1764878855562,13.067,3107.0,3106.6,0.1609]
[1764878856160,41.56054225,3106.9,3106.4,0.16091]
[1764878856468,3.2078,3107.2,3107.1,0.16087]
[1764878856763,0.00482075,3107.4,3107.3,0.16086]
[1764878856967,0.00306828,3107.9,3107.7,0.16084]
[1764878857367,0.76023102,3107.8,3107.1,3.2078]
[1764878857667,3.2078,3107.5,3107.0,0.16088]
[1764878857869,3.2078,3107.5,3107.3,0.16086]
[1764878858273,3.2078,3107.5,3107.4,0.16086]
[1764878859057,3.96832664,3107.5,3107.4,0.16086]
[1764878859371,3.96839202,3107.5,3107.4,0.16086]
[1764878859764,0.00482882,3107.7,3107.6,0.16085]
[1764878860073,0.76538097,3107.7,3107.6,0.16085]
[1764878860669,0.00482882,3107.7,3107.6,0.16085]
[1764878861472,0.00482882,3107.7,3107.6,4.32845]
[1764878863175,4.4825,3108.7,3108.4,0.1608]
[1764878863470,2.009,3108.5,3108.4,0.1608]